bitfinex/quotes_SOLUSD_20250721
["timestamp","ask_amount","ask_price","bid_price","bid_amount"]
[1753071572180,1.512,186.19,186.18,0.03]
[1753071572503,7.58285772,186.19,186.18,0.03]
[1753071574983,8.25421493,186.19,186.18,0.03]
[1753071575296,2.212,186.19,186.18,0.03]
[1753071576094,7.58285772,186.19,186.18,0.03]
[1753071576300,1.512,186.19,186.18,89.08015588]
[1753071576478,1.512,186.19,186.18,89.78015588]
[1753071577080,1.512,186.19,186.18,111.93598605]
[1753071577295,1.512,186.19,186.18,103.30828397]
[1753071577491,1.512,186.19,186.18,105.86483985]
[1753071577700,1.512,186.19,186.18,106.56483985]
[1753071579783,1.512,186.19,186.18,111.93598605]
[1753071580187,0.06,186.23,186.19,16.78468397]
[1753071580393,0.06,186.23,186.22,3.25655588]
[1753071580597,0.06,186.23,186.19,89.05015588]
[1753071580809,0.7,186.22,186.19,89.05015588]
[1753071581813,0.06,186.23,186.2,3.25655588]
[1753071582111,0.76,186.23,186.2,3.25655588]
[1753071583691,6.12978687,186.23,186.2,3.25655588]
[1753071584793,5.42978687,186.23,186.2,3.25655588]
[1753071584992,5.42978687,186.23,186.19,85.7936]
[1753071584993,0.7,186.22,186.19,3.25655588]
[1753071585308,0.7,186.21,186.19,3.25655588]
[1753071585695,6.12978687,186.23,186.2,3.25655588]
[1753071585902,6.12978687,186.23,186.21,3.25655588]
[1753071586102,6.12978687,186.23,186.18,17.49468397]
[1753071586311,6.12978687,186.23,186.2,3.25655588]
[1753071587018,6.12978687,186.23,186.19,3.25655588]
[1753071587220,0.7,186.22,186.19,3.25655588]
[1753071587417,0.7,186.21,186.18,105.86483985]
[1753071587609,0.7,186.2,186.18,85.8236]
[1753071587812,2.2822,186.19,186.18,85.8236]
[1753071588009,2.2822,186.19,186.18,0.03]
[1753071589108,1.5822,186.19,186.18,3.28655588]
[1753071589589,1.5822,186.19,186.18,3.96655588]
[1753071590395,1.5822,186.19,186.18,0.03]
[1753071591019,1.5822,186.19,186.18,85.8236]
[1753071591728,1.5822,186.19,186.18,89.08015588]
[1753071592100,1.5822,186.19,186.18,85.8236]
[1753071593320,1.5822,186.19,186.18,89.08015588]
[1753071594836,1.5822,186.19,186.18,127.70015588]
[1753071595708,1.5822,186.19,186.18,149.85598605]
[1753071596127,1.6467,186.23,186.19,16.78468397]
[1753071596333,1.6467,186.23,186.22,3.25655588]
[1753071597937,1.6467,186.23,186.21,3.25655588]
[1753071599943,1.6467,186.23,186.21,89.05015588]
[1753071600240,2.3467,186.23,186.21,89.05015588]
[1753071601036,1.6467,186.23,186.21,89.05015588]
[1753071602920,1.6467,186.23,186.21,89.73015588]
[1753071603120,1.6467,186.23,186.21,89.05015588]
[1753071603850,1.6467,186.23,186.22,3.25655588]
[1753071604328,0.06,186.26,186.22,290.76813985]
[1753071604644,0.67099683,186.29,186.22,290.76813985]
[1753071604645,0.2,186.34,186.3,16.78468397]
[1753071604830,0.2,186.34,186.33,16.78468397]
[1753071605032,0.06,186.37,186.36,48.15064233]
[1753071605365,0.2,186.39,186.37,16.78468397]
[1753071605515,0.2,186.39,186.38,87.17779573]
[1753071605836,0.2,186.39,186.38,87.28779573]
[1753071606221,0.2,186.39,186.38,61.28779573]
[1753071606415,0.06,186.41,186.39,16.78468397]
[1753071606621,0.06,186.41,186.4,83.92123985]
[1753071606823,0.06,186.41,186.4,84.03123985]
[1753071607233,0.06,186.41,186.4,80.77468397]
[1753071607437,0.06,186.41,186.4,84.03123985]
[1753071607616,0.019119,186.45,186.44,91.08468397]
[1753071607817,7.7641303,186.75,186.44,91.08468397]
[1753071607818,1.51,186.57,186.49,91.08468397]
[1753071608023,1.51,186.57,186.56,20.04123985]
[1753071608224,1.51,186.57,186.56,57.88123985]
[1753071609149,1.51,186.57,186.56,59.92811107]
[1753071610448,1.51,186.57,186.56,22.08811107]
[1753071610652,1.51,186.57,186.56,59.92811107]
[1753071610833,1.51,186.57,186.56,59.90811107]
[1753071611353,1.624,186.62,186.6,42.78468397]
[1753071611552,1.624,186.62,186.61,59.88811107]
[1753071611855,0.7,186.61,186.6,5.3034271]
[1753071612038,0.7,186.61,186.6,37.82]
[1753071612832,6.05876962,186.61,186.6,37.82]
[1753071613038,6.05876962,186.61,186.6,43.1234271]
[1753071613343,6.05876962,186.61,186.51,103.6]
[1753071613344,6.05876962,186.61,186.58,5.3034271]
[1753071613548,0.69,186.6,186.59,37.8]
[1753071614251,0.69,186.6,186.56,16.78468397]
[1753071614441,5.35934401,186.59,186.55,5.3034271]
[1753071614638,0.69,186.58,186.55,37.78]
[1753071614835,0.69,186.57,186.55,37.78]
[1753071615052,0.69,186.56,186.55,37.78]
[1753071615248,0.69,186.56,186.55,43.0834271]
[1753071615943,5.36006955,186.57,186.55,43.0834271]
[1753071616144,5.36006955,186.57,186.55,37.78]
[1753071616356,6.05006955,186.57,186.55,37.78]
[1753071617043,5.36006955,186.57,186.55,37.78]
[1753071617244,0.69,186.56,186.55,37.78]
[1753071617629,5.36006955,186.57,186.55,43.0834271]
[1753071617835,0.69,186.56,186.55,37.78]
[1753071618034,1.6627,186.55,186.51,5.3034271]
[1753071618240,0.69,186.54,186.52,43.0834271]
[1753071619143,1.6627,186.55,186.52,43.0834271]
[1753071619349,0.69,186.54,186.52,43.0834271]
[1753071619660,0.69,186.54,186.52,5.3034271]
[1753071619836,0.69,186.54,186.53,37.76]
[1753071620243,6.05078052,186.54,186.53,37.76]
[1753071620445,6.05078052,186.54,186.51,87.5]
[1753071620635,0.69,186.53,186.51,87.5]
[1753071620837,0.69,186.52,186.51,87.5]
[1753071622049,6.05135535,186.52,186.51,87.5]
[1753071622251,6.05135535,186.52,186.47,109.58811107]
[1753071622559,6.05135535,186.52,186.47,37.74]
[1753071622560,1.5502,186.5,186.47,37.74]
[1753071622860,1.5502,186.5,186.48,43.0434271]
[1753071623066,1.5502,186.5,186.48,5.3034271]
[1753071623563,0.69,186.49,186.47,37.74]
[1753071623767,0.69,186.48,186.47,37.74]
[1753071623940,0.69,186.48,186.46,37.74]
[1753071624276,5.36279294,186.47,186.46,43.0434271]
[1753071624745,6.05279294,186.47,186.46,37.74]
[1753071625455,6.05279294,186.47,186.42,5.3034271]
[1753071625633,0.69,186.46,186.41,5.3034271]
[1753071625839,0.69,186.46,186.42,37.76]
[1753071626255,5.36336819,186.45,186.42,37.76]
[1753071626446,6.05336819,186.45,186.42,37.76]
[1753071626852,0.69,186.44,186.41,5.3034271]
[1753071627064,5.36336819,186.45,186.43,5.3034271]
[1753071627360,5.36304576,186.47,186.44,43.0634271]
[1753071627758,5.36304576,186.47,186.45,5.3034271]
[1753071627954,0.69,186.49,186.46,43.0434271]
[1753071627955,6.05246859,186.49,186.46,43.0434271]
[1753071628275,5.36246859,186.49,186.47,5.3034271]
[1753071628448,5.36246859,186.49,186.48,37.74]
[1753071629148,6.91218835,186.5,186.48,130.5434271]
[1753071629477,27.6625,186.46,186.38,87.5]
[1753071629647,2.33288506,186.46,186.38,125.28]
[1753071629848,1.6625,186.46,186.45,5.3034271]
[1753071630357,7.02558055,186.46,186.45,43.5634271]
[1753071630559,1.6625,186.46,186.45,43.5634271]
[1753071630782,1.6625,186.46,186.45,60.34811107]
[1753071630961,1.6476,186.51,186.46,16.78468397]
[1753071631149,0.69,186.5,186.49,5.3034271]
[1753071631783,7.0092428,186.51,186.49,5.3034271]
[1753071632576,7.0092428,186.51,186.5,5.3034271]
[1753071632945,1.6476,186.51,186.5,109.58811107]
[1753071633144,7.00780583,186.56,186.51,16.78468397]
[1753071633374,7.00780583,186.56,186.55,5.3034271]
[1753071633954,7.00780583,186.56,186.54,5.3034271]
[1753071634261,7.00780583,186.56,186.51,104.28468397]
[1753071634262,6.05049316,186.55,186.52,5.3034271]
[1753071634459,0.69,186.54,186.51,147.98811107]
[1753071635172,0.69,186.54,186.52,5.3034271]
[1753071635375,5.36049316,186.55,186.52,5.3034271]
[1753071635572,6.05049316,186.55,186.52,5.3034271]
[1753071636160,0.69,186.54,186.52,5.3034271]
[1753071637392,5.36106792,186.53,186.52,5.3034271]
[1753071638267,5.36106792,186.53,186.52,92.8034271]
[1753071639156,5.36106792,186.53,186.52,90.75685295]
[1753071639358,5.36084165,186.54,186.52,90.75685295]
[1753071639576,5.36084165,186.54,186.53,3.25685295]
[1753071639883,1.6476,186.56,186.54,16.78468397]
[1753071640173,1.6476,186.56,186.55,20.04153692]
[1753071641673,7.69780583,186.56,186.52,3.25685295]
[1753071641874,6.1733,186.54,186.41,0.03]
[1753071642081,3.92698644,186.53,186.42,38.36]
[1753071642389,3.92698644,186.53,186.47,3.25685295]
[1753071642390,5.3616428,186.51,186.47,3.25685295]
[1753071642555,5.3616428,186.51,186.46,3.25685295]
[1753071642878,3.25685295,186.49,186.43,3.25685295]
[1753071643065,3.25685295,186.49,186.44,16.78468397]
[1753071643258,0.66,186.48,186.44,16.78468397]
[1753071643457,5.97287224,186.48,186.42,5.31287224]
[1753071643673,0.66,186.47,186.42,5.31287224]
[1753071643869,5.31287224,186.48,186.43,16.78468397]
[1753071644074,0.66,186.46,186.43,16.78468397]
[1753071644260,5.31287224,186.48,186.43,104.28468397]
[1753071644461,5.36365586,186.44,186.43,104.28468397]
[1753071644979,5.36365586,186.44,186.43,87.5]
[1753071645151,6.02365586,186.44,186.41,87.53]
[1753071646078,2.2431,186.43,186.41,0.03]
[1753071646476,6.0242313,186.42,186.41,0.03]
[1753071648180,6.94708412,186.43,186.41,0.03]
[1753071648366,1.5831,186.43,186.42,5.31287224]
[1753071648572,7.60704739,186.43,186.41,0.03]
[1753071648774,0.66,186.42,186.41,0.03]
[1753071649368,5.97287224,186.42,186.41,0.03]
[1753071649567,0.66,186.42,186.41,0.03]
[1753071650192,6.64340115,186.42,186.41,0.03]
[1753071650380,5.36451907,186.41,186.37,0.03]
[1753071650692,5.31287224,186.39,186.37,0.03]
[1753071651072,5.31287224,186.39,186.34,16.78468397]
[1753071651073,8.27684505,186.38,186.3,16.78468397]
[1753071651272,8.27684505,186.38,186.34,16.78468397]
[1753071651273,0.66,186.37,186.34,16.78468397]
[1753071651700,0.66,186.37,186.32,5.31287224]
[1753071651886,0.66,186.36,186.31,16.78468397]
[1753071652188,5.31287224,186.33,186.26,92.81287224]
[1753071652414,7.1697,186.34,186.29,5.31287224]
[1753071652570,5.3668223,186.33,186.29,5.31287224]
[1753071652774,6.0268223,186.33,186.29,16.78468397]
[1753071654469,0.66,186.32,186.28,16.78468397]
[1753071654675,1.6014,186.31,186.28,16.78468397]
[1753071654881,1.6014,186.31,186.24,186.4]
[1753071654882,1.33096081,186.3,186.25,16.78468397]
[1753071655088,1.33096081,186.3,186.22,5.31287224]
[1753071655089,5.31287224,186.28,186.22,5.31287224]
[1753071655372,1.33099683,186.29,186.23,5.31287224]
[1753071655373,0.66,186.27,186.23,5.31287224]
[1753071655793,5.98386907,186.29,186.2,16.78468397]
[1753071655989,0.66,186.26,186.22,5.31287224]
[1753071656492,5.36912751,186.25,186.22,5.31287224]
[1753071656692,5.36912751,186.25,186.22,16.78468397]
[1753071656896,11.64427224,186.23,186.19,0.03]
[1753071657102,5.31287224,186.22,186.19,0.03]
[1753071657278,0.66,186.22,186.19,0.03]
[1753071657478,0.66,186.21,186.19,0.03]
[1753071657796,0.67132116,186.2,186.19,0.03]
[1753071658095,6.3314,186.23,186.19,5.34287224]
[1753071658396,5.37028086,186.21,186.19,0.03]
[1753071659494,7.02617962,186.24,186.21,16.78468397]
[1753071659701,1.6565,186.24,186.21,16.78468397]
[1753071659869,1.6565,186.24,186.23,5.31287224]
[1753071660474,1.6565,186.24,186.23,22.09755621]
[1753071660997,1.6565,186.24,186.22,5.31287224]
[1753071661197,1.6565,186.24,186.18,113.53]
[1753071661198,1.6246,186.21,186.18,0.03]
[1753071661398,5.31287224,186.19,186.15,0.03]
[1753071661599,5.31287224,186.16,186.1,0.03]
[1753071661811,5.31287224,186.11,186.1,0.03]
[1753071662317,5.31287224,186.11,186.04,0.1]
[1753071662318,0.66,186.11,186.04,0.1]
[1753071662487,5.37345513,186.1,186.07,5.31287224]
[1753071662799,5.37345513,186.1,186.04,0.1]
[1753071662800,6.87407224,186.08,186.04,0.1]
[1753071662983,1.5612,186.08,186.04,5.41287224]
[1753071663187,1.5612,186.08,186.05,5.31287224]
[1753071664002,1.5612,186.08,186.07,5.31287224]
[1753071664505,1.5612,186.08,186.04,16.88468397]
[1753071664683,1.5612,186.08,186.07,5.31287224]
[1753071665602,1.5612,186.08,186.07,48.09755621]
[1753071665790,8.1992,186.14,186.11,42.78468397]
[1753071665992,8.1992,186.14,186.13,5.31287224]
[1753071666193,1.5789,186.14,186.13,22.09755621]
[1753071667181,1.5789,186.14,186.13,16.78468397]
[1753071667381,1.5789,186.14,186.13,22.09755621]
[1753071673399,1.5789,186.14,186.13,109.59755621]
[1753071673707,1.5789,186.14,186.13,16.78468397]
[1753071673912,2.2789,186.14,186.13,16.78468397]
[1753071674505,7.65139013,186.14,186.11,16.78468397]
[1753071674809,0.7,186.13,186.12,5.31287224]
[1753071675511,1.5789,186.14,186.12,5.31287224]
[1753071675806,2.2789,186.14,186.12,5.31287224]
[1753071676123,0.7,186.13,186.11,22.09755621]
[1753071676488,6.95126455,186.14,186.11,22.09755621]
[1753071676809,1.5789,186.14,186.12,5.31287224]
[1753071677006,1.5789,186.14,186.11,16.78468397]
[1753071677007,1.5789,186.14,186.13,22.09755621]
[1753071677309,1.5789,186.14,186.13,16.78468397]
[1753071677688,1.5789,186.14,186.13,22.09755621]
[1753071681024,1.5789,186.14,186.13,114.97014526]
[1753071681187,1.5789,186.14,186.13,153.33014526]
[1753071681388,1.6563,186.2,186.18,16.78468397]
[1753071681590,1.6563,186.2,186.19,22.09755621]
[1753071681824,1.6563,186.2,186.19,27.46841393]
[1753071682908,0.7,186.27,186.19,27.46841393]
[1753071682909,1.6603,186.25,186.23,42.78468397]
[1753071683110,2.3603,186.25,186.24,22.09755621]
[1753071683500,1.6603,186.25,186.24,22.09755621]
[1753071684597,1.6603,186.25,186.24,16.78468397]
[1753071684806,7.72942751,186.25,186.22,87.5]
[1753071685007,5.31287224,186.23,186.13,87.5]
[1753071685206,27.37096081,186.24,186.13,87.5]
[1753071685207,1.5064,186.18,186.14,5.31287224]
[1753071685415,1.5064,186.18,186.14,92.81287224]
[1753071685711,2.2064,186.18,186.15,5.31287224]
[1753071685893,1.5064,186.18,186.16,16.78468397]
[1753071686211,0.7,186.17,186.15,16.78468397]
[1753071686421,1.5064,186.18,186.16,5.31287224]
[1753071686597,1.5064,186.18,186.17,22.09755621]
[1753071686911,1.5064,186.18,186.17,16.78468397]
[1753071688005,1.5064,186.18,186.17,22.09755621]
[1753071688212,1.5064,186.18,186.17,27.46899092]
[1753071691627,6.5362,186.24,186.21,16.78468397]
[1753071691830,0.7,186.23,186.21,256.09115621]
[1753071692140,0.7,186.26,186.22,22.09755621]
[1753071692311,16.72319364,186.28,186.22,108.09115621]
[1753071692518,0.7,186.25,186.22,108.09115621]
[1753071692834,0.7,186.24,186.22,108.09115621]
[1753071693504,0.7,186.23,186.22,102.77828397]
[1753071693834,6.01287224,186.23,186.22,85.2736]
[1753071694022,6.01287224,186.23,186.12,0.72]
[1753071694023,6.01287224,186.23,186.16,16.78468397]
[1753071694225,5.31287224,186.21,186.16,16.78468397]
[1753071694409,0.7,186.2,186.16,16.78468397]
[1753071694605,1.54,186.19,186.16,16.78468397]
[1753071694802,6.042,186.18,186.16,85.2736]
[1753071695025,6.042,186.18,186.12,0.72]
[1753071695026,5.37172324,186.16,186.12,5.31287224]
[1753071695324,6.042,186.18,186.15,5.31287224]
[1753071695627,6.042,186.18,186.17,22.09755621]
[1753071695931,1.54,186.19,186.18,16.78468397]
[1753071696110,1.54,186.19,186.18,60.83755621]
[1753071696430,1.54,186.24,186.22,16.78468397]
[1753071696606,1.54,186.24,186.23,22.09755621]
[1753071698902,1.54,186.24,186.23,28.18726033]
[1753071700018,1.54,186.24,186.23,54.18726033]
[1753071700223,6.042,186.27,186.23,54.18726033]
[1753071700224,1.5252,186.29,186.28,102.05828397]
[1753071700424,1.5252,186.29,186.28,22.09755621]
[1753071701430,2.2252,186.29,186.28,16.78468397]
[1753071701636,2.2252,186.29,186.28,60.77755621]
[1753071701935,1.5252,186.29,186.28,22.09755621]
[1753071702632,2.2252,186.29,186.28,16.78468397]
[1753071702842,2.2252,186.29,186.26,16.78468397]
[1753071703143,1.5252,186.29,186.27,5.31287224]
[1753071703318,0.69,186.28,186.26,16.78468397]
[1753071703644,0.69,186.27,186.26,16.78468397]
[1753071704547,6.05868192,186.27,186.24,38.66]
[1753071704721,5.36868192,186.27,186.25,16.78468397]
[1753071704925,0.69,186.26,186.25,16.78468397]
[1753071705334,1.5252,186.29,186.28,26.0]
[1753071705629,6.4986,186.31,186.29,100.53308397]
[1753071705945,0.2,186.33,186.31,16.78468397]
[1753071706147,0.69,186.32,186.31,89.06127224]
[1753071706453,6.05711034,186.32,186.31,83.7484]
[1753071706835,5.36711034,186.32,186.31,83.7484]
[1753071707151,11.36998258,186.32,186.31,83.7484]
[1753071707353,6.05711034,186.32,186.31,83.7484]
[1753071708352,11.36998258,186.32,186.31,83.7484]
[1753071708545,12.97058258,186.32,186.31,83.7484]
[1753071709152,7.65771034,186.32,186.31,83.7484]
[1753071711938,12.97058258,186.32,186.31,83.7484]
[1753071712341,7.65771034,186.32,186.31,83.7484]
[1753071714356,6.96771034,186.32,186.31,83.7484]
[1753071714546,1.6006,186.32,186.31,83.7484]
[1753071715138,1.6006,186.32,186.31,105.84595621]
[1753071716560,1.6006,186.32,186.31,144.42595621]
[1753071717849,1.6006,186.32,186.31,105.84595621]
[1753071718840,0.2,186.33,186.32,100.53308397]
[1753071719163,0.2,186.33,186.32,144.38595621]
[1753071720150,0.2,186.33,186.32,145.08595621]
[1753071720350,0.2,186.33,186.32,144.38595621]
[1753071721447,0.2,186.33,186.32,149.75306655]
[1753071722365,0.2,186.33,186.32,144.38595621]
[1753071724053,13.49289029,186.36,186.34,16.78468397]
[1753071724257,8.8169,186.36,186.34,22.09755621]
[1753071724462,13.49286983,186.36,186.34,16.78468397]
[1753071724662,0.69,186.35,186.34,16.78468397]
[1753071724858,8.1269,186.36,186.34,16.78468397]
[1753071725044,8.1269,186.36,186.34,22.09755621]
[1753071726062,0.69,186.35,186.34,16.78468397]
[1753071726667,6.00287224,186.35,186.33,83.5484]
[1753071726871,1.518,186.33,186.25,83.5784]
[1753071727069,1.518,186.33,186.25,0.03]
[1753071727070,5.31287224,186.29,186.25,0.03]
[1753071727367,5.36855102,186.27,186.25,0.03]
[1753071727760,0.69,186.26,186.25,0.03]
[1753071728573,2.208,186.26,186.25,0.03]
[1753071728774,7.52087224,186.26,186.25,0.03]
[1753071729152,12.88971149,186.26,186.25,0.03]
[1753071734381,2.208,186.26,186.25,0.03]
[1753071734582,7.57683925,186.26,186.25,0.03]
[1753071734962,13.56081639,186.26,186.25,0.03]
[1753071736687,8.24794415,186.26,186.25,0.03]
[1753071736988,12.88971149,186.26,186.25,0.03]
[1753071739081,1.518,186.26,186.25,0.03]
[1753071739896,2.228,186.26,186.25,0.03]
[1753071740196,12.90971149,186.26,186.25,0.03]
[1753071740390,1.518,186.26,186.25,0.03]
[1753071741888,1.518,186.26,186.25,88.89127224]
[1753071743785,6.4121,186.28,186.25,89.61127224]
[1753071744093,1.517,186.3,186.27,5.31287224]
[1753071744402,1.517,186.3,186.29,5.31287224]
[1753071744700,1.517,186.3,186.29,88.86127224]
[1753071745782,1.517,186.3,186.29,83.5484]
[1753071746980,45.81987224,186.3,186.29,83.5484]
[1753071747179,51.18755876,186.3,186.25,0.03]
[1753071747391,5.31287224,186.26,186.25,0.03]
[1753071747694,5.98397714,186.26,186.25,0.03]
[1753071748195,6.69397714,186.26,186.25,0.03]
[1753071748388,12.06281639,186.26,186.25,0.03]
[1753071748589,11.39171149,186.26,186.25,0.03]
[1753071749477,0.71,186.26,186.25,0.03]
[1753071749683,6.02287224,186.26,186.25,0.03]
[1753071749882,11.39171149,186.26,186.25,0.03]
[1753071752892,49.59171149,186.26,186.25,0.03]
[1753071753086,44.27883925,186.26,186.25,0.03]
[1753071753896,49.59171149,186.26,186.25,0.03]
[1753071756693,49.59171149,186.26,186.25,83.5784]
[1753071757799,49.55171149,186.26,186.25,83.5784]
[1753071760691,44.23883925,186.26,186.25,83.5784]
[1753071761003,49.55171149,186.26,186.25,83.5784]
[1753071761194,47.46669756,186.26,186.25,83.5784]
[1753071761399,46.75669756,186.26,186.25,83.5784]
[1753071761707,47.46669756,186.26,186.25,83.5784]
[1753071762310,44.19883925,186.26,186.25,83.5784]
[1753071762910,43.48883925,186.26,186.25,83.5784]
[1753071763418,43.46883925,186.26,186.25,83.5784]
[1753071763621,5.36883925,186.26,186.25,83.5784]
[1753071763914,43.46883925,186.26,186.25,83.5784]
[1753071764207,44.15883925,186.26,186.25,83.5784]
[1753071764592,47.42669756,186.26,186.25,83.5784]
[1753071765314,44.15883925,186.26,186.25,83.5784]
[1753071766314,5.36883925,186.26,186.25,83.5784]
[1753071766516,43.44883925,186.26,186.25,83.5784]
[1753071766822,1.517,186.3,186.25,87.55625831]
[1753071766992,1.517,186.3,186.28,3.26785831]
[1753071767809,1.517,186.3,186.28,3.97785831]
[1753071768523,1.517,186.3,186.28,3.26785831]
[1753071769016,0.69,186.29,186.25,124.92625831]
[1753071769192,0.69,186.28,186.25,83.5784]
[1753071770108,38.08,186.29,186.26,3.26785831]
[1753071770298,38.77,186.29,186.26,3.26785831]
[1753071770500,6.05802751,186.29,186.26,3.26785831]
[1753071770725,6.05802751,186.29,186.25,83.5784]
[1753071770901,0.69,186.28,186.25,83.5784]
[1753071771108,38.77,186.28,186.25,83.5784]
[1753071771610,38.77,186.28,186.25,86.84625831]
[1753071771806,38.08,186.28,186.25,83.5784]
[1753071772018,38.08,186.28,186.25,86.84625831]
[1753071772892,43.44830242,186.28,186.25,86.84625831]
[1753071773095,1.517,186.3,186.27,3.26785831]
[1753071773615,6.88473049,186.3,186.26,20.05254228]
[1753071773821,7.57473049,186.3,186.26,20.05254228]
[1753071774126,7.57473049,186.3,186.26,16.78468397]
[1753071774335,0.69,186.29,186.26,3.26785831]
[1753071775007,6.88473049,186.3,186.26,3.26785831]
[1753071775307,6.88473049,186.3,186.27,3.26785831]
[1753071775496,6.88473049,186.3,186.26,3.26785831]
[1753071775694,7.57473049,186.3,186.26,3.26785831]
[1753071777125,6.88473049,186.3,186.25,86.84625831]
[1753071777428,0.69,186.29,186.25,86.84625831]
[1753071777900,6.05817258,186.29,186.25,86.84625831]
[1753071778625,1.517,186.3,186.27,3.26785831]
[1753071778799,1.517,186.3,186.28,3.97785831]
[1753071779001,1.517,186.3,186.27,3.26785831]
[1753071779225,0.06,186.33,186.31,26.0]
[1753071779428,0.06,186.33,186.32,3.26785831]
[1753071779935,0.06,186.33,186.31,112.81625831]
[1753071780097,0.06,186.33,186.31,109.5484]
[1753071780304,0.06,186.33,186.31,112.81625831]
[1753071780726,0.06,186.33,186.31,109.5484]
[1753071780939,0.06,186.33,186.31,112.81625831]
[1753071781621,0.06,186.33,186.32,20.05254228]
[1753071781831,0.06,186.33,186.32,59.38254228]
[1753071782324,0.06,186.33,186.32,64.74965262]
[1753071782508,0.06,186.37,186.35,83.4884]
[1753071782712,0.06,186.37,186.36,3.26785831]
[1753071782923,0.06,186.37,186.36,130.25094228]
[1753071783607,0.06,186.37,186.36,148.2084]
[1753071783802,0.06,186.37,186.36,109.4884]
[1753071784026,0.06,186.37,186.36,83.4884]
[1753071784424,0.06,186.37,186.36,142.97094228]
[1753071785733,0.06,186.37,186.36,145.68590477]
[1753071786723,0.06,186.37,186.36,142.41804646]
[1753071786920,0.06,186.37,186.36,145.68590477]
[1753071787423,0.06,186.37,186.36,151.05186313]
[1753071787629,0.06,186.37,186.36,145.68590477]
[1753071787826,0.06,186.37,186.36,144.97590477]
[1753071788313,0.06,186.37,186.36,106.25590477]
[1753071788515,0.06,186.37,186.36,102.98804646]
[1753071789129,0.06,186.37,186.36,106.25590477]
[1753071789633,0.06,186.37,186.36,106.96590477]
[1753071790132,0.06,186.41,186.4,16.78468397]
[1753071790329,0.06,186.41,186.4,103.48094228]
[1753071790636,0.06,186.41,186.4,100.92308397]
[1753071790817,0.75,186.41,186.4,83.4284]
[1753071791022,4.01785831,186.41,186.4,83.4284]
[1753071791933,0.75,186.41,186.4,83.4284]
[1753071792136,4.68842319,186.41,186.4,83.4284]
[1753071792327,10.05294226,186.41,186.4,83.4284]
[1753071794016,6.78508395,186.41,186.4,83.4284]
[1753071794222,6.11451907,186.41,186.4,83.4284]
[1753071795618,0.06,186.49,186.48,42.78468397]
[1753071795919,0.1,186.52,186.51,42.78468397]
[1753071796119,0.1,186.52,186.51,82.04084825]
[1753071796320,0.1,186.52,186.51,84.77254228]
[1753071797112,0.1,186.52,186.51,86.81136663]
[1753071797518,0.1,186.52,186.51,81.50468397]
[1753071797712,0.1,186.52,186.51,86.81136663]
[1753071798218,0.1,186.52,186.51,87.34753091]
[1753071798432,0.1,186.52,186.51,48.62753091]
[1753071798617,0.1,186.52,186.51,86.79136663]
[1753071798820,0.1,186.52,186.43,85.572195]
[1753071798821,1.5257,186.51,186.43,85.572195]
[1753071799023,0.72,186.5,186.45,5.30668266]
[1753071799336,0.72,186.5,186.46,5.30668266]
[1753071799646,8.137,186.51,186.46,5.30668266]
[1753071799820,13.49885644,186.51,186.46,5.30668266]
[1753071800139,14.21885644,186.51,186.46,5.30668266]
[1753071800740,0.72,186.5,186.45,22.09136663]
[1753071801121,8.137,186.51,186.46,5.30668266]
[1753071801422,0.72,186.5,186.45,22.09136663]
[1753071801621,13.44368266,186.51,186.45,22.09136663]
[1753071801925,8.137,186.51,186.46,5.30668266]
[1753071802121,8.857,186.51,186.46,10.66974268]
[1753071802423,8.857,186.51,186.48,5.30668266]
[1753071802629,8.137,186.51,186.48,88.73508266]
[1753071803439,1.5257,186.51,186.49,5.30668266]
[1753071803630,1.5257,186.51,186.49,22.09136663]
[1753071804035,2.2457,186.51,186.48,122.0884]
[1753071804244,2.2457,186.51,186.48,88.73508266]
[1753071804545,1.5257,186.51,186.48,88.73508266]